[Event "Titled Tuesday Blitz June 07 Late 2022"]
[White "Bjelobrk, Igor"]
[Black "Holt, Conrad"]
[WhiteFideId "4300726"]
[BlackFideId "2034387"]
[WhiteElo "2335"]
[BlackElo "2586"]
[Result "0-1"]
[Round "08"]
[TimeControl "180+1"]
[Date "2022.06.07"]
[WhiteClock "0:00:40"]
[BlackClock "0:00:09"]

1. Nf3 {[%clk 0:03:00]}  d5 {[%clk 0:02:58]} 2. c4 {[%clk 0:02:59]}  c6 {[%clk 0:02:55]} 3. g3 {[%clk 0:02:58]}  Bg4 {[%clk 0:02:52]} 4. Ne5 {[%clk 0:02:52]}  Be6 {[%clk 0:02:50]} 5. cxd5 {[%clk 0:02:52]}  Bxd5 {[%clk 0:02:47]} 6. Nf3 {[%clk 0:02:51]}  Bxf3 {[%clk 0:02:46]} 7. exf3 {[%clk 0:02:51]}  g6 {[%clk 0:02:44]} 8. d4 {[%clk 0:02:45]}  Bg7 {[%clk 0:02:43]} 9. Be3 {[%clk 0:02:45]}  Nh6 {[%clk 0:02:39]} 10. Bh3 {[%clk 0:02:41]}  Nf5 {[%clk 0:02:34]} 11. Bxf5 {[%clk 0:02:40]}  Qa5+ {[%clk 0:02:34]} 12. Nc3 {[%clk 0:02:38]}  Qxf5 {[%clk 0:02:34]} 13. O-O {[%clk 0:02:36]}  O-O {[%clk 0:02:32]} 14. Kg2 {[%clk 0:02:30]}  Na6 {[%clk 0:02:29]} 15. Qb3 {[%clk 0:02:29]}  Qd7 {[%clk 0:02:05]} 16. Rfd1 {[%clk 0:02:26]}  e6 {[%clk 0:02:00]} 17. h4 {[%clk 0:02:24]}  Nc7 {[%clk 0:01:59]} 18. h5 {[%clk 0:02:19]}  Nd5 {[%clk 0:01:59]} 19. hxg6 {[%clk 0:02:18]}  hxg6 {[%clk 0:01:58]} 20. Ne4 {[%clk 0:02:18]}  Rfd8 {[%clk 0:01:50]} 21. Nc5 {[%clk 0:02:16]}  Qe8 {[%clk 0:01:49]} 22. Rac1 {[%clk 0:01:58]}  Rab8 {[%clk 0:01:39]} 23. a3 {[%clk 0:01:57]}  Qe7 {[%clk 0:01:36]} 24. Rh1 {[%clk 0:01:46]}  Nxe3+ {[%clk 0:01:27]} 25. fxe3 {[%clk 0:01:46]}  e5 {[%clk 0:01:27]} 26. dxe5 {[%clk 0:01:40]}  Rd2+ {[%clk 0:01:25]} 27. Kh3 {[%clk 0:01:39]}  Qxe5 {[%clk 0:01:23]} 28. g4 {[%clk 0:01:31]}  Rxb2 {[%clk 0:01:11]} 29. Qd3 {[%clk 0:01:25]}  Qe7 {[%clk 0:01:08]} 30. Rhd1 {[%clk 0:01:20]}  Re8 {[%clk 0:00:57]} 31. Ne4 {[%clk 0:01:20]}  Be5 {[%clk 0:00:42]} 32. Rc2 {[%clk 0:01:13]}  Rxc2 {[%clk 0:00:38]} 33. Qxc2 {[%clk 0:01:14]}  Kg7 {[%clk 0:00:37]} 34. Kg2 {[%clk 0:01:07]}  Rh8 {[%clk 0:00:26]} 35. f4 {[%clk 0:01:07]}  Qh4 {[%clk 0:00:26]} 36. Kf3 {[%clk 0:01:02]}  Qh3+ {[%clk 0:00:02]} 37. Ng3 {[%clk 0:01:02]}  Rh4 {[%clk 0:00:02]} 38. fxe5 {[%clk 0:00:56]}  Qxg4+ {[%clk 0:00:03]} 39. Kg2 {[%clk 0:00:56]}  Rh3 {[%clk 0:00:03]} 40. Qf2 {[%clk 0:00:43]}  Rxg3+ {[%clk 0:00:04]} 41. Qxg3 {[%clk 0:00:43]}  Qxd1 {[%clk 0:00:04]} 42. Qf4 {[%clk 0:00:43]}  Qd5+ {[%clk 0:00:04]} 43. Kg3 {[%clk 0:00:43]}  Qe6 {[%clk 0:00:05]} 44. a4 {[%clk 0:00:40]}  b6 {[%clk 0:00:05]} 45. Qd4 {[%clk 0:00:39]}  c5 {[%clk 0:00:06]} 46. Qd6 {[%clk 0:00:40]}  Qxd6 {[%clk 0:00:06]} 47. exd6 {[%clk 0:00:41]}  Kf6 {[%clk 0:00:06]} 48. e4 {[%clk 0:00:40]}  Ke6 {[%clk 0:00:06]} 49. e5 {[%clk 0:00:40]}  a6 {[%clk 0:00:07]} 50. Kf4 {[%clk 0:00:39]}  b5 {[%clk 0:00:07]} 51. axb5 {[%clk 0:00:39]}  axb5 {[%clk 0:00:08]} 52. Ke4 {[%clk 0:00:39]}  b4 {[%clk 0:00:08]} 53. Kd3 {[%clk 0:00:39]}  g5 {[%clk 0:00:09]} 54. Kc4 {[%clk 0:00:39]}  g4 {[%clk 0:00:09]} 55. Kxc5 {[%clk 0:00:40]}  Kd7 {[%clk 0:00:09]} 56. Kxb4 {[%clk 0:00:40]}  g3 {[%clk 0:00:09]} 0-1


[Site "https://www.chess.com"]

[Event "Titled Tuesday Blitz June 07 Late 2022"]
[White "Bortnyk, Olexandr"]
[Black "Domingo Nunez, Ruben"]
[WhiteFideId "14120828"]
[BlackFideId "22245570"]
[WhiteElo "2723"]
[BlackElo "2376"]
[Result "1-0"]
[Round "08"]
[TimeControl "180+1"]
[Date "2022.06.07"]
[WhiteClock "0:00:35"]
[BlackClock "0:00:05"]

1. d4 {[%clk 0:03:00]}  d6 {[%clk 0:02:58]} 2. Nc3 {[%clk 0:03:01]}  g6 {[%clk 0:02:51]} 3. h4 {[%clk 0:02:58]}  Nf6 {[%clk 0:02:48]} 4. e4 {[%clk 0:02:58]}  Nc6 {[%clk 0:02:44]} 5. Bg5 {[%clk 0:02:56]}  Bg7 {[%clk 0:02:37]} 6. Qd2 {[%clk 0:02:40]}  h6 {[%clk 0:02:29]} 7. Bxf6 {[%clk 0:02:35]}  Bxf6 {[%clk 0:02:29]} 8. d5 {[%clk 0:02:32]}  Nd4 {[%clk 0:02:23]} 9. O-O-O {[%clk 0:02:21]}  c5 {[%clk 0:02:22]} 10. f4 {[%clk 0:02:18]}  Bg4 {[%clk 0:02:17]} 11. Re1 {[%clk 0:02:12]}  e5 {[%clk 0:02:09]} 12. dxe6 {[%clk 0:02:08]}  fxe6 {[%clk 0:02:09]} 13. Qf2 {[%clk 0:01:36]}  O-O {[%clk 0:01:30]} 14. Qg3 {[%clk 0:01:32]}  h5 {[%clk 0:01:30]} 15. Bd3 {[%clk 0:01:28]}  c4 {[%clk 0:00:59]} 16. Bxc4 {[%clk 0:01:27]}  Rc8 {[%clk 0:01:00]} 17. Bb3 {[%clk 0:01:14]}  Qa5 {[%clk 0:00:56]} 18. e5 {[%clk 0:01:07]}  dxe5 {[%clk 0:00:43]} 19. fxe5 {[%clk 0:01:08]}  Bg7 {[%clk 0:00:42]} 20. Kb1 {[%clk 0:01:05]}  Bh6 {[%clk 0:00:24]} 21. Nh3 {[%clk 0:00:57]}  Kg7 {[%clk 0:00:17]} 22. Ng5 {[%clk 0:00:57]}  Nxb3 {[%clk 0:00:12]} 23. axb3 {[%clk 0:00:56]}  Rf5 {[%clk 0:00:13]} 24. Nxe6+ {[%clk 0:00:56]}  Kf7 {[%clk 0:00:13]} 25. Nd4 {[%clk 0:00:53]}  Bd2 {[%clk 0:00:11]} 26. e6+ {[%clk 0:00:51]}  Ke7 {[%clk 0:00:10]} 27. Nxf5+ {[%clk 0:00:52]}  Bxf5 {[%clk 0:00:10]} 28. Re5 {[%clk 0:00:37]}  Qb4 {[%clk 0:00:05]} 29. Nd5+ {[%clk 0:00:35]} 1-0


[Site "https://www.chess.com"]

[Event "Titled Tuesday Blitz June 07 Late 2022"]
[White "Bringas Gomez, Artai"]
[Black "Dourerassou, Jonathan"]
[WhiteFideId "24534064"]
[BlackFideId "628050"]
[WhiteElo "1988"]
[BlackElo "2499"]
[Result "1-0"]
[Round "08"]
[TimeControl "180+1"]
[Date "2022.06.07"]
[WhiteClock "0:00:50"]
[BlackClock "0:02:11"]

1. d4 {[%clk 0:02:53]}  Nf6 {[%clk 0:03:00]} 2. c4 {[%clk 0:02:54]}  g6 {[%clk 0:03:00]} 3. Nc3 {[%clk 0:02:48]}  d5 {[%clk 0:03:00]} 4. cxd5 {[%clk 0:02:47]}  Nxd5 {[%clk 0:03:01]} 5. Bd2 {[%clk 0:02:48]}  Bg7 {[%clk 0:03:01]} 6. e4 {[%clk 0:02:47]}  Nb6 {[%clk 0:03:02]} 7. Be3 {[%clk 0:02:47]}  O-O {[%clk 0:03:03]} 8. h4 {[%clk 0:02:33]}  Nc6 {[%clk 0:03:03]} 9. Nge2 {[%clk 0:02:23]}  Bg4 {[%clk 0:03:01]} 10. f3 {[%clk 0:02:23]}  Nc4 {[%clk 0:03:00]} 11. Bf2 {[%clk 0:02:23]}  Bd7 {[%clk 0:02:57]} 12. b3 {[%clk 0:02:06]}  Nb6 {[%clk 0:02:56]} 13. h5 {[%clk 0:02:05]}  a5 {[%clk 0:02:44]} 14. g4 {[%clk 0:02:03]}  a4 {[%clk 0:02:42]} 15. bxa4 {[%clk 0:01:44]}  Nb4 {[%clk 0:02:37]} 16. Rb1 {[%clk 0:01:42]}  Bxa4 {[%clk 0:02:33]} 17. Nxa4 {[%clk 0:01:37]}  Rxa4 {[%clk 0:02:33]} 18. Nc3 {[%clk 0:01:36]}  Nxa2 {[%clk 0:02:33]} 19. Nxa4 {[%clk 0:01:34]}  Nxa4 {[%clk 0:02:34]} 20. Qxa4 {[%clk 0:01:31]}  Nc3 {[%clk 0:02:32]} 21. Qb4 {[%clk 0:01:31]}  Nxb1 {[%clk 0:02:32]} 22. Qxb1 {[%clk 0:01:32]}  Bxd4 {[%clk 0:02:31]} 23. Be2 {[%clk 0:01:30]}  b6 {[%clk 0:02:29]} 24. h6 {[%clk 0:01:25]}  Bc3+ {[%clk 0:02:27]} 25. Kf1 {[%clk 0:01:25]}  Qd2 {[%clk 0:02:28]} 26. Qd3 {[%clk 0:01:23]}  Ra8 {[%clk 0:02:22]} 27. Qxd2 {[%clk 0:01:16]}  Bxd2 {[%clk 0:02:23]} 28. Kg2 {[%clk 0:01:03]}  c5 {[%clk 0:02:23]} 29. Rd1 {[%clk 0:01:02]}  Ra2 {[%clk 0:02:22]} 30. Be3 {[%clk 0:00:56]}  c4 {[%clk 0:02:09]} 31. Rxd2 {[%clk 0:00:55]}  Rxd2 {[%clk 0:02:07]} 32. Bxd2 {[%clk 0:00:56]}  b5 {[%clk 0:02:08]} 33. Kf2 {[%clk 0:00:55]}  e5 {[%clk 0:02:07]} 34. Bb4 {[%clk 0:00:54]}  f6 {[%clk 0:02:06]} 35. Ke3 {[%clk 0:00:52]}  Kf7 {[%clk 0:02:07]} 36. Kd2 {[%clk 0:00:52]}  g5 {[%clk 0:02:07]} 37. Kc3 {[%clk 0:00:50]}  Kg6 {[%clk 0:02:08]} 38. Be7 {[%clk 0:00:50]}  Kxh6 {[%clk 0:02:08]} 39. Bxf6 {[%clk 0:00:50]}  Kg6 {[%clk 0:02:09]} 40. Bxe5 {[%clk 0:00:51]}  h5 {[%clk 0:02:09]} 41. gxh5+ {[%clk 0:00:51]}  Kxh5 {[%clk 0:02:09]} 42. Bg3 {[%clk 0:00:52]}  g4 {[%clk 0:02:07]} 43. f4 {[%clk 0:00:52]}  Kg6 {[%clk 0:02:07]} 44. Bxg4 {[%clk 0:00:52]}  Kf6 {[%clk 0:02:07]} 45. e5+ {[%clk 0:00:52]}  Ke7 {[%clk 0:02:07]} 46. f5 {[%clk 0:00:52]}  Kf7 {[%clk 0:02:08]} 47. Bh5+ {[%clk 0:00:52]}  Ke7 {[%clk 0:02:09]} 48. Bh4+ {[%clk 0:00:52]}  Kf8 {[%clk 0:02:10]} 49. e6 {[%clk 0:00:52]}  Kg7 {[%clk 0:02:11]} 50. Bg5 {[%clk 0:00:51]}  Kh7 {[%clk 0:02:10]} 51. e7 {[%clk 0:00:50]}  b4+ {[%clk 0:02:11]} 52. Kd4 {[%clk 0:00:50]}  c3 {[%clk 0:02:12]} 53. e8=Q {[%clk 0:00:50]}  c2 {[%clk 0:02:13]} 54. Qf7+ {[%clk 0:00:49]}  Kh8 {[%clk 0:02:11]} 55. Bf6# {[%clk 0:00:50]} 1-0


[Site "https://www.chess.com"]

[Event "Titled Tuesday Blitz June 07 Late 2022"]
[White "Chigaev, Maksim"]
[Black "Gurevich, Dmitry"]
[WhiteFideId "4108116"]
[BlackFideId "2000407"]
[WhiteElo "2457"]
[BlackElo "2506"]
[Result "1-0"]
[Round "08"]
[TimeControl "180+1"]
[Date "2022.06.07"]
[WhiteClock "0:00:46"]
[BlackClock "0:00:18"]

1. e4 {[%clk 0:02:58]}  c5 {[%clk 0:02:59]} 2. Nf3 {[%clk 0:02:57]}  d6 {[%clk 0:02:58]} 3. c3 {[%clk 0:02:56]}  Nf6 {[%clk 0:02:57]} 4. g3 {[%clk 0:02:56]}  g6 {[%clk 0:02:55]} 5. Bg2 {[%clk 0:02:57]}  Bg7 {[%clk 0:02:55]} 6. O-O {[%clk 0:02:57]}  O-O {[%clk 0:02:55]} 7. Re1 {[%clk 0:02:58]}  e5 {[%clk 0:02:54]} 8. a4 {[%clk 0:02:57]}  Nc6 {[%clk 0:02:53]} 9. d3 {[%clk 0:02:58]}  h6 {[%clk 0:02:51]} 10. Na3 {[%clk 0:02:56]}  d5 {[%clk 0:02:50]} 11. exd5 {[%clk 0:02:46]}  Nxd5 {[%clk 0:02:49]} 12. Nc4 {[%clk 0:02:45]}  Re8 {[%clk 0:02:47]} 13. Nfd2 {[%clk 0:02:38]}  Kh7 {[%clk 0:02:06]} 14. Ne4 {[%clk 0:02:35]}  Bf8 {[%clk 0:02:04]} 15. a5 {[%clk 0:02:28]}  f5 {[%clk 0:01:58]} 16. Ned6 {[%clk 0:02:19]}  Nxc3 {[%clk 0:01:41]} 17. bxc3 {[%clk 0:02:19]}  Bxd6 {[%clk 0:01:41]} 18. a6 {[%clk 0:02:19]}  Rb8 {[%clk 0:01:34]} 19. axb7 {[%clk 0:02:19]}  Bxb7 {[%clk 0:01:34]} 20. Qa4 {[%clk 0:02:20]}  Rc8 {[%clk 0:01:18]} 21. Ba3 {[%clk 0:02:02]}  Bf8 {[%clk 0:01:15]} 22. Nxe5 {[%clk 0:01:49]}  Nxe5 {[%clk 0:01:03]} 23. Bxb7 {[%clk 0:01:48]}  Rc7 {[%clk 0:00:58]} 24. Bg2 {[%clk 0:01:44]}  Rd7 {[%clk 0:00:51]} 25. d4 {[%clk 0:01:28]}  cxd4 {[%clk 0:00:50]} 26. Bxf8 {[%clk 0:01:21]}  d3 {[%clk 0:00:32]} 27. Bc5 {[%clk 0:01:13]}  d2 {[%clk 0:00:31]} 28. Rf1 {[%clk 0:00:51]}  Nd3 {[%clk 0:00:27]} 29. Bd4 {[%clk 0:00:48]}  Re1 {[%clk 0:00:18]} 30. Qc2 {[%clk 0:00:46]} 1-0


[Site "https://www.chess.com"]

[Event "Titled Tuesday Blitz June 07 Late 2022"]
[White "Flores Quillas, Diego Saul Rodri"]
[Black "Bryakin, Mikhail"]
[WhiteFideId "3822508"]
[BlackFideId "4165314"]
[WhiteElo "2167"]
[BlackElo "2417"]
[Result "0-1"]
[Round "08"]
[TimeControl "180+1"]
[Date "2022.06.07"]
[WhiteClock "0:00:25"]
[BlackClock "0:01:35"]

1. e4 {[%clk 0:03:00]}  c5 {[%clk 0:02:54]} 2. Nf3 {[%clk 0:02:44]}  d6 {[%clk 0:02:54]} 3. d4 {[%clk 0:02:35]}  cxd4 {[%clk 0:02:55]} 4. Nxd4 {[%clk 0:02:36]}  Nf6 {[%clk 0:02:56]} 5. Nc3 {[%clk 0:02:25]}  a6 {[%clk 0:02:56]} 6. Bg5 {[%clk 0:02:26]}  e5 {[%clk 0:02:55]} 7. Nb3 {[%clk 0:02:25]}  Be7 {[%clk 0:02:55]} 8. a4 {[%clk 0:02:16]}  Be6 {[%clk 0:02:55]} 9. Bxf6 {[%clk 0:02:15]}  Bxf6 {[%clk 0:02:54]} 10. Nd5 {[%clk 0:02:16]}  Bg5 {[%clk 0:02:52]} 11. Be2 {[%clk 0:02:12]}  O-O {[%clk 0:02:52]} 12. O-O {[%clk 0:02:12]}  Nc6 {[%clk 0:02:52]} 13. c3 {[%clk 0:02:11]}  Ne7 {[%clk 0:02:50]} 14. Bc4 {[%clk 0:02:09]}  Rc8 {[%clk 0:02:45]} 15. Nxe7+ {[%clk 0:02:09]}  Qxe7 {[%clk 0:02:46]} 16. Bd5 {[%clk 0:02:10]}  Kh8 {[%clk 0:02:43]} 17. Qd3 {[%clk 0:02:04]}  f5 {[%clk 0:02:42]} 18. Rfd1 {[%clk 0:02:04]}  Rcd8 {[%clk 0:02:40]} 19. Na5 {[%clk 0:01:56]}  fxe4 {[%clk 0:02:37]} 20. Qxe4 {[%clk 0:01:55]}  Bf5 {[%clk 0:02:38]} 21. Qe2 {[%clk 0:01:54]}  Rd7 {[%clk 0:02:36]} 22. Nc4 {[%clk 0:01:51]}  Bf4 {[%clk 0:02:16]} 23. g3 {[%clk 0:01:42]}  Bh6 {[%clk 0:02:17]} 24. Ne3 {[%clk 0:01:39]}  Be6 {[%clk 0:02:15]} 25. Rd2 {[%clk 0:01:28]}  Bxd5 {[%clk 0:02:08]} 26. Nxd5 {[%clk 0:01:25]}  Qe6 {[%clk 0:02:06]} 27. Rd3 {[%clk 0:01:24]}  Rdf7 {[%clk 0:02:07]} 28. Rf1 {[%clk 0:01:24]}  e4 {[%clk 0:02:06]} 29. Rd4 {[%clk 0:01:23]}  e3 {[%clk 0:01:59]} 30. f4 {[%clk 0:01:23]}  g5 {[%clk 0:01:54]} 31. Qxe3 {[%clk 0:01:14]}  Qxe3+ {[%clk 0:01:54]} 32. Nxe3 {[%clk 0:01:15]}  gxf4 {[%clk 0:01:55]} 33. Ng4 {[%clk 0:00:59]}  Bg5 {[%clk 0:01:52]} 34. Rxd6 {[%clk 0:00:58]}  fxg3 {[%clk 0:01:46]} 35. Rxf7 {[%clk 0:00:58]}  gxh2+ {[%clk 0:01:47]} 36. Kxh2 {[%clk 0:00:58]}  Rxf7 {[%clk 0:01:48]} 37. Rd5 {[%clk 0:00:54]}  Bf4+ {[%clk 0:01:45]} 38. Kh3 {[%clk 0:00:54]}  Kg7 {[%clk 0:01:44]} 39. b4 {[%clk 0:00:52]}  Rc7 {[%clk 0:01:41]} 40. Rd3 {[%clk 0:00:51]}  Kg6 {[%clk 0:01:39]} 41. Nf2 {[%clk 0:00:48]}  Kf5 {[%clk 0:01:38]} 42. Rd5+ {[%clk 0:00:39]}  Ke6 {[%clk 0:01:38]} 43. Rd3 {[%clk 0:00:38]}  Be5 {[%clk 0:01:38]} 44. Nd1 {[%clk 0:00:35]}  Rd7 {[%clk 0:01:36]} 45. Rxd7 {[%clk 0:00:35]}  Kxd7 {[%clk 0:01:37]} 46. Kg4 {[%clk 0:00:35]}  Ke6 {[%clk 0:01:37]} 47. c4 {[%clk 0:00:35]}  Bd4 {[%clk 0:01:34]} 48. Kf3 {[%clk 0:00:34]}  Ke5 {[%clk 0:01:34]} 49. Ne3 {[%clk 0:00:24]}  Bxe3 {[%clk 0:01:34]} 50. Kxe3 {[%clk 0:00:24]}  h5 {[%clk 0:01:35]} 51. c5 {[%clk 0:00:25]}  Kd5 {[%clk 0:01:35]} 0-1


[Site "https://www.chess.com"]

[Event "Titled Tuesday Blitz June 07 Late 2022"]
[White "Golubovskis, Maksims"]
[Black "Leiva, Gianmarco"]
[WhiteFideId "11608528"]
[BlackFideId "3804399"]
[WhiteElo "2102"]
[BlackElo "2323"]
[Result "0-1"]
[Round "08"]
[TimeControl "180+1"]
[Date "2022.06.07"]
[WhiteClock "0:00:04"]
[BlackClock "0:00:37"]

1. e4 {[%clk 0:03:00]}  c5 {[%clk 0:02:53]} 2. Nf3 {[%clk 0:03:00]}  d6 {[%clk 0:02:54]} 3. d4 {[%clk 0:03:01]}  cxd4 {[%clk 0:02:55]} 4. Nxd4 {[%clk 0:03:02]}  Nf6 {[%clk 0:02:55]} 5. Nc3 {[%clk 0:03:02]}  a6 {[%clk 0:02:56]} 6. h3 {[%clk 0:03:02]}  e5 {[%clk 0:02:56]} 7. Nde2 {[%clk 0:03:02]}  h5 {[%clk 0:02:55]} 8. g3 {[%clk 0:03:03]}  Be6 {[%clk 0:02:56]} 9. Bg5 {[%clk 0:03:03]}  Be7 {[%clk 0:02:55]} 10. Bg2 {[%clk 0:03:03]}  b5 {[%clk 0:02:55]} 11. O-O {[%clk 0:02:49]}  Nbd7 {[%clk 0:02:55]} 12. Qd2 {[%clk 0:02:45]}  b4 {[%clk 0:02:51]} 13. Nd5 {[%clk 0:02:33]}  Nxd5 {[%clk 0:02:49]} 14. exd5 {[%clk 0:02:31]}  Bxg5 {[%clk 0:02:49]} 15. f4 {[%clk 0:02:25]}  Bxh3 {[%clk 0:02:49]} 16. Bxh3 {[%clk 0:02:01]}  exf4 {[%clk 0:02:45]} 17. gxf4 {[%clk 0:01:57]}  Bf6 {[%clk 0:02:45]} 18. Qxb4 {[%clk 0:01:53]}  Qb6+ {[%clk 0:02:45]} 19. Qxb6 {[%clk 0:01:52]}  Nxb6 {[%clk 0:02:46]} 20. Rab1 {[%clk 0:01:22]}  Rb8 {[%clk 0:02:46]} 21. Ng3 {[%clk 0:01:03]}  Nxd5 {[%clk 0:02:40]} 22. Ne4 {[%clk 0:01:03]}  Bd4+ {[%clk 0:01:47]} 23. Kh1 {[%clk 0:00:57]}  Ne3 {[%clk 0:01:47]} 24. Nxd6+ {[%clk 0:00:48]}  Ke7 {[%clk 0:01:47]} 25. Nf5+ {[%clk 0:00:48]}  Nxf5 {[%clk 0:01:47]} 26. Bxf5 {[%clk 0:00:48]}  Kf6 {[%clk 0:01:45]} 27. Bd3 {[%clk 0:00:29]}  Bxb2 {[%clk 0:01:45]} 28. Bxa6 {[%clk 0:00:29]}  Rb4 {[%clk 0:01:43]} 29. Bd3 {[%clk 0:00:25]}  Ra8 {[%clk 0:01:42]} 30. Rf2 {[%clk 0:00:18]}  Rd8 {[%clk 0:00:35]} 31. Kg2 {[%clk 0:00:15]}  Rdd4 {[%clk 0:00:35]} 32. f5 {[%clk 0:00:14]}  Rg4+ {[%clk 0:00:34]} 33. Kf3 {[%clk 0:00:12]}  Rgf4+ {[%clk 0:00:34]} 34. Kg3 {[%clk 0:00:07]}  Rxf2 {[%clk 0:00:35]} 35. Rxb2 {[%clk 0:00:03]}  Rxb2 {[%clk 0:00:36]} 36. Kxf2 {[%clk 0:00:04]}  Rxa2 {[%clk 0:00:37]} 0-1


[Site "https://www.chess.com"]

[Event "Titled Tuesday Blitz June 07 Late 2022"]
[White "Grigoriants, Sergey"]
[Black "Dubov, Daniil"]
[WhiteFideId "4130804"]
[BlackFideId "24126055"]
[WhiteElo "2502"]
[BlackElo "2791"]
[Result "0-1"]
[Round "08"]
[TimeControl "180+1"]
[Date "2022.06.07"]
[WhiteClock "0:00:11"]
[BlackClock "0:00:21"]

1. e4 {[%clk 0:02:58]}  e5 {[%clk 0:02:58]} 2. Nf3 {[%clk 0:02:56]}  Nc6 {[%clk 0:02:59]} 3. Bb5 {[%clk 0:02:56]}  a6 {[%clk 0:02:59]} 4. Ba4 {[%clk 0:02:56]}  Nf6 {[%clk 0:03:00]} 5. O-O {[%clk 0:02:55]}  Be7 {[%clk 0:03:00]} 6. d3 {[%clk 0:02:51]}  b5 {[%clk 0:03:00]} 7. Bb3 {[%clk 0:02:52]}  O-O {[%clk 0:03:00]} 8. a3 {[%clk 0:02:48]}  d6 {[%clk 0:02:59]} 9. Nc3 {[%clk 0:02:48]}  Rb8 {[%clk 0:02:59]} 10. h3 {[%clk 0:02:44]}  h6 {[%clk 0:02:58]} 11. Nd5 {[%clk 0:02:39]}  Re8 {[%clk 0:02:54]} 12. Bd2 {[%clk 0:02:37]}  Bf8 {[%clk 0:02:54]} 13. a4 {[%clk 0:02:34]}  Nxd5 {[%clk 0:02:52]} 14. Bxd5 {[%clk 0:02:33]}  Ne7 {[%clk 0:02:53]} 15. Bb3 {[%clk 0:02:33]}  Ng6 {[%clk 0:02:52]} 16. axb5 {[%clk 0:02:33]}  axb5 {[%clk 0:02:52]} 17. Ra7 {[%clk 0:02:24]}  Be6 {[%clk 0:02:51]} 18. Ba5 {[%clk 0:02:15]}  Rc8 {[%clk 0:02:50]} 19. Bxe6 {[%clk 0:02:13]}  Rxe6 {[%clk 0:02:51]} 20. g3 {[%clk 0:02:08]}  Qd7 {[%clk 0:02:36]} 21. Kh2 {[%clk 0:02:06]}  Ne7 {[%clk 0:02:35]} 22. Bd2 {[%clk 0:02:01]}  Nc6 {[%clk 0:02:32]} 23. Ra6 {[%clk 0:01:58]}  d5 {[%clk 0:02:32]} 24. c3 {[%clk 0:01:38]}  Rd8 {[%clk 0:02:25]} 25. Kg2 {[%clk 0:01:22]}  Rd6 {[%clk 0:02:07]} 26. Qe2 {[%clk 0:01:12]}  Qc8 {[%clk 0:01:43]} 27. Raa1 {[%clk 0:00:58]}  d4 {[%clk 0:01:30]} 28. Rfd1 {[%clk 0:00:49]}  dxc3 {[%clk 0:01:25]} 29. Bxc3 {[%clk 0:00:48]}  Qe6 {[%clk 0:01:24]} 30. Qe3 {[%clk 0:00:43]}  b4 {[%clk 0:01:21]} 31. Be1 {[%clk 0:00:42]}  Nd4 {[%clk 0:01:16]} 32. Nxd4 {[%clk 0:00:39]}  Rxd4 {[%clk 0:01:17]} 33. Qe2 {[%clk 0:00:31]}  Qb3 {[%clk 0:01:10]} 34. Ra7 {[%clk 0:00:31]}  c5 {[%clk 0:01:09]} 35. Qh5 {[%clk 0:00:19]}  f6 {[%clk 0:00:35]} 36. Qg4 {[%clk 0:00:17]}  Kh8 {[%clk 0:00:22]} 37. Rf7 {[%clk 0:00:11]}  Qxf7 {[%clk 0:00:21]} 0-1


[Site "https://www.chess.com"]

[Event "Titled Tuesday Blitz June 07 Late 2022"]
[White "Ibarra Jerez, Jose Carlos"]
[Black "Tarigan, Gilbert Elroy"]
[WhiteFideId "2226332"]
[BlackFideId "7108133"]
[WhiteElo "2628"]
[BlackElo "1908"]
[Result "0-1"]
[Round "08"]
[TimeControl "180+1"]
[Date "2022.06.07"]
[WhiteClock "0:00:03"]
[BlackClock "0:00:06"]

1. e4 {[%clk 0:03:00]}  e5 {[%clk 0:02:56]} 2. Nf3 {[%clk 0:03:00]}  Nc6 {[%clk 0:02:56]} 3. Bb5 {[%clk 0:03:00]}  a6 {[%clk 0:02:55]} 4. Bxc6 {[%clk 0:02:59]}  dxc6 {[%clk 0:02:56]} 5. O-O {[%clk 0:03:00]}  Ne7 {[%clk 0:02:45]} 6. Nxe5 {[%clk 0:02:58]}  Qd4 {[%clk 0:02:46]} 7. Qh5 {[%clk 0:02:56]}  g6 {[%clk 0:02:46]} 8. Qg5 {[%clk 0:02:33]}  Bg7 {[%clk 0:02:45]} 9. Nd3 {[%clk 0:02:33]}  f5 {[%clk 0:02:24]} 10. e5 {[%clk 0:02:32]}  h6 {[%clk 0:02:16]} 11. Qe3 {[%clk 0:02:30]}  Qxe3 {[%clk 0:02:11]} 12. dxe3 {[%clk 0:02:27]}  b6 {[%clk 0:02:11]} 13. b3 {[%clk 0:02:09]}  c5 {[%clk 0:02:09]} 14. Bb2 {[%clk 0:02:08]}  Be6 {[%clk 0:02:03]} 15. Nd2 {[%clk 0:02:05]}  Kf7 {[%clk 0:02:02]} 16. e4 {[%clk 0:01:51]}  Rad8 {[%clk 0:01:54]} 17. Rae1 {[%clk 0:01:49]}  Nc6 {[%clk 0:01:40]} 18. exf5 {[%clk 0:01:44]}  gxf5 {[%clk 0:01:40]} 19. Nf3 {[%clk 0:01:40]}  Nb4 {[%clk 0:01:27]} 20. Nxb4 {[%clk 0:01:30]}  cxb4 {[%clk 0:01:28]} 21. Rd1 {[%clk 0:01:14]}  c5 {[%clk 0:01:15]} 22. Rfe1 {[%clk 0:01:13]}  a5 {[%clk 0:01:04]} 23. g3 {[%clk 0:01:10]}  a4 {[%clk 0:00:57]} 24. Nh4 {[%clk 0:00:56]}  b5 {[%clk 0:00:36]} 25. Ng2 {[%clk 0:00:53]}  c4 {[%clk 0:00:34]} 26. Nf4 {[%clk 0:00:30]}  c3 {[%clk 0:00:33]} 27. Bc1 {[%clk 0:00:11]}  Rxd1 {[%clk 0:00:26]} 28. Rxd1 {[%clk 0:00:11]}  Bxe5 {[%clk 0:00:26]} 29. Nxe6 {[%clk 0:00:11]}  Kxe6 {[%clk 0:00:27]} 30. Re1 {[%clk 0:00:12]}  Kd5 {[%clk 0:00:23]} 31. Rd1+ {[%clk 0:00:10]}  Kc6 {[%clk 0:00:19]} 32. Be3 {[%clk 0:00:09]}  h5 {[%clk 0:00:16]} 33. Kg2 {[%clk 0:00:09]}  Ra8 {[%clk 0:00:12]} 34. Kh3 {[%clk 0:00:07]}  axb3 {[%clk 0:00:07]} 35. axb3 {[%clk 0:00:08]}  Ra2 {[%clk 0:00:08]} 36. Rc1 {[%clk 0:00:09]}  Bf6 {[%clk 0:00:09]} 37. Kg2 {[%clk 0:00:06]}  Kd5 {[%clk 0:00:08]} 38. Kf3 {[%clk 0:00:07]}  Be5 {[%clk 0:00:08]} 39. Ke2 {[%clk 0:00:07]}  Ke6 {[%clk 0:00:06]} 40. Kd3 {[%clk 0:00:06]}  Ra8 {[%clk 0:00:06]} 41. Re1 {[%clk 0:00:05]}  Kd5 {[%clk 0:00:05]} 42. Bc5 {[%clk 0:00:04]}  Kxc5 {[%clk 0:00:03]} 43. Rxe5+ {[%clk 0:00:03]}  Kb6 {[%clk 0:00:04]} 44. Rxf5 {[%clk 0:00:03]}  Rd8+ {[%clk 0:00:04]} 45. Ke3 {[%clk 0:00:04]}  Rd2 {[%clk 0:00:05]} 46. Rf6+ {[%clk 0:00:02]}  Kc5 {[%clk 0:00:04]} 47. Rf5+ {[%clk 0:00:03]}  Kb6 {[%clk 0:00:05]} 48. Rf4 {[%clk 0:00:03]}  Kc5 {[%clk 0:00:04]} 49. Rh4 {[%clk 0:00:03]}  Rxc2 {[%clk 0:00:04]} 50. Rxh5+ {[%clk 0:00:04]}  Kb6 {[%clk 0:00:05]} 51. Rh6+ {[%clk 0:00:04]}  Kc5 {[%clk 0:00:05]} 52. Rh8 {[%clk 0:00:04]}  Rb2 {[%clk 0:00:04]} 53. Rc8+ {[%clk 0:00:05]}  Kb6 {[%clk 0:00:03]} 54. h4 {[%clk 0:00:06]}  Rxb3 {[%clk 0:00:04]} 55. h5 {[%clk 0:00:06]}  Rb1 {[%clk 0:00:04]} 56. g4 {[%clk 0:00:05]}  Rh1 {[%clk 0:00:04]} 57. f4 {[%clk 0:00:05]}  Kb7 {[%clk 0:00:04]} 58. Rc5 {[%clk 0:00:05]}  Kb6 {[%clk 0:00:04]} 59. Rc8 {[%clk 0:00:05]}  b3 {[%clk 0:00:04]} 60. Rxc3 {[%clk 0:00:04]}  b2 {[%clk 0:00:05]} 61. Rb3 {[%clk 0:00:05]}  Rh3+ {[%clk 0:00:05]} 62. Ke4 {[%clk 0:00:03]}  Rxb3 {[%clk 0:00:06]} 0-1


[Site "https://www.chess.com"]